Cogmind - Beta 9.3 @@@ ROGUE MODE // 2019.12.23 @ 22:16:57 // Winter2019/RPGLIKE Player: eldritch Result: Destroyed by L-31 Rogue with Katana Performance ------------- Evolutions (1) 500 Regions Visited (3) 600 Robots Destroyed (12) 60 Value Destroyed (110) 110 Prototype IDs (0) 0 Alien Tech Used (0) 0 Bonus (0) 0 TOTAL SCORE: 1270 Bonus ------- None Cogmind --------- Core Integrity 0/600 Matter 252/300 Energy 290/290 System Corruption 0% Temperature Cool (8) Movement Flying (40) Location -9/Materials Parts ------- > --- POWER (1) -------- Improved Deuterium Engine > --- PROPULSION (2) --- Flight Unit > --- UTILITY (2) ------ Weight Redist. System Improved Terrain Scanner > --- WEAPON (2) ------- Assault Rifle > --- INVENTORY (1) ---- Grenade Launcher Peak State ------------ > --- POWER ------------ Improved Deuterium Engine > --- PROPULSION ------- Flight Unit > --- UTILITY ---------- Weight Redist. System Improved Terrain Scanner > --- WEAPON ----------- Assault Rifle Assault Rifle > --- INVENTORY -------- Grenade Launcher [Rating: 11] Favorites ----------- Power Ion Engine Engine Ion Engine Propulsion Flight Unit Flight Unit Flight Unit Utility Improved Terrain Scanner Device Improved Terrain Scanner Weapon Assault Rifle Ballistic Gun Assault Rifle Launcher Grenade Launcher Build | -11 -10 -10 -9 ------- Run | Scr Mat Min Mat Slots Evolved 3 | 2 . 1 . Power . | . . . . Propulsion 1 | . . 1 . Utility 1 | 1 . . . Weapon 1 | 1 . . . Parts Attached 11 | 3 3 5 . Power 1 | . . 1 . Engine 1 | . . 1 . Core . | . . . . Reactor . | . . . . Propulsion 2 | . 1 1 . Treads . | . . . . Leg . | . . . . Wheel . | . . . . Hover . | . . . . Flight 2 | . 1 1 . Utility 2 | 1 1 . . Device 2 | 1 1 . . Storage . | . . . . Processor . | . . . . Hackware . | . . . . Protection . | . . . . Artifact . | . . . . Weapon 6 | 2 1 3 . Energy Gun . | . . . . Energy Cannon . | . . . . Ballistic Gun 4 | 2 . 2 . Ballistic Cannon . | . . . . Launcher 2 | . 1 1 . Special Weapon . | . . . . Impact Weapon . | . . . . Slashing Weapon . | . . . . Piercing Weapon . | . . . . Special Melee Weapon . | . . . . Unidentified Prototypes . | . . . . Parts Lost 1 | . . 1 . Power . | . . . . Propulsion 1 | . . 1 . Utility . | . . . . Weapon . | . . . . Highest Loss Streak 1 | . . 1 . Average Slot Usage (%) 88 | . 83 93 85 Engine 15 | . 16 14 14 Flight 11 | . 3 17 14 Device 29 | . 29 29 28 Ballistic Gun 27 | . 27 27 28 Launcher 2 | . 4 2 . Naked Turns . | . . . . Heaviest Build 15 | 10 11 15 15 Greatest Support 24 | 13 20 24 20 Greatest Overweight (x) . | . . . . Average Overweight (x) . | . . . . Largest Inventory Capacity 1 | . 1 1 1 Average Capacity . | . . 1 1 Most Carried 1 | . 1 1 1 Average Carried . | . . 1 1 Final Capacity 1 | . 1 1 1 Final Carried 1 | . 1 1 1 Class Distribution -------------------- 69% | Scout 30% | Scavenger-Scout Dominant Class ---------------- Scout | -10/Materials Scout | -10/Mines Scavenger-Scout | -9/Materials Resources | -11 -10 -10 -9 ----------- Run | Scr Mat Min Mat Matter Collected 510 | 220 43 54 193 Remotely . | . . . . Salvage Created 117 | 15 80 22 . Parts 25 | 5 11 9 . Haulers Intercepted 1 | . 1 . . Recyclers Shooed . | . . . . Parts Field Recycled . | . . . . Retrieved Matter . | . . . . Parts Self-Destructed . | . . . . Prevented . | . . . . Kills | -11 -10 -10 -9 ------- Run | Scr Mat Min Mat Combat Hostiles Destroyed 10 | . 6 4 . Guns 5 | . 4 1 . AOE 5 | . 2 3 . Classes Destroyed 3 | 1 2 . . Tunneler 1 | 1 . . . Hauler 1 | . 1 . . Swarmer 9 | . 6 3 . Best Kill Streak 3 | 1 3 3 . Combat Bots Only 3 | . 3 3 . Max Kills in Single Turn 2 | 1 2 2 . Gunslinging . | . . . . Exploded 2 | . 2 2 . Melee . | . . . . Uniques/NPCs Destroyed 1 | . . 1 . YI-UF0 (-10/Mines) Combat | -11 -10 -10 -9 -------- Run | Scr Mat Min Mat Damage Taken 821 | . 116 516 189 Core 682 | . 96 429 157 Absorbed by Shields . | . . . . Redirected to Core 460 | . 64 294 102 Core Remaining (%) 61 | 100 . 23 . Volleys Fired 34 | 1 13 12 8 Largest 2 | 2 2 2 2 Hottest 50 | 40 50 50 40 Shots Fired 68 | 2 26 24 16 Gun 61 | 2 22 21 16 Cannon . | . . . . Launcher 7 | . 4 3 . Special . | . . . . Kinetic 61 | 2 22 21 16 Thermal . | . . . . Explosive 7 | . 4 3 . Electromagnetic . | . . . . Robot Hit Streak 8 | 2 3 8 4 Robot Miss Streak 6 | . 4 6 3 Penetration Max . | . . . . Secondary Targets . | . . . . Shots Hit Robots 37 | 2 9 16 10 Core Hits 19 | 1 10 6 2 Critical Hits . | . . . . Critical Kills . | . . . . Critical Parts Destroyed . | . . . . Melee Attacks . | . . . . Impact . | . . . . Slashing . | . . . . Piercing . | . . . . Sneak Attacks . | . . . . Combat Hostiles . | . . . . Follow-up Attacks . | . . . . Damage Inflicted 767 | 27 212 389 139 Guns 450 | 27 82 202 139 Cannons . | . . . . Explosions 317 | . 130 187 . Melee . | . . . . Ramming . | . . . . Kinetic 450 | 27 82 202 139 Thermal . | . . . . Explosive 317 | . 130 187 . Electromagnetic . | . . . . Impact . | . . . . Slashing . | . . . . Piercing . | . . . . Highest Corruption . | . . . . Average Corruption . | . . . . Corruption Purged . | . . . . Overload Shots . | . . . . Overflow Damage . | . . . . Projectiles . | . . . . Explosions . | . . . . Melee . | . . . . Knockbacks . | . . . . Impact . | . . . . Kinetic . | . . . . Secondary . | . . . . Self-Inflicted Damage . | . . . . Shots . | . . . . Rammed . | . . . . Targets Rammed . | . . . . Kicked . | . . . . Crushed . | . . . . Highest Temperature 8 | . 6 2 8 Average Temperature 3 | . 6 2 3 Received Heat Transfer 84 | . . . 84 Siege Activations . | . . . . Robots Corrupted . | . . . . Combat Hostiles . | . . . . Parts Fried . | . . . . Impact Corruptions . | . . . . Robots Melted . | . . . . Combat Hostiles . | . . . . Parts Melted . | . . . . Heat Transferred . | . . . . Parts Sabotaged . | . . . . Parts Stolen . | . . . . Parts Stripped . | . . . . Power Chain Reactions . | . . . . Missiles Intercepted . | . . . . Alert | -11 -10 -10 -9 ------- Run | Scr Mat Min Mat Peak Influence 168 | 5 168 165 60 Average Influence 89 | 2 63 132 60 Maximum Alert Level . | . . . . Low Security (%) 100 | 100 100 100 100 Level 1 . | . . . . Level 2 . | . . . . Level 3 . | . . . . Level 4 . | . . . . Level 5 . | . . . . High Security . | . . . . Max Security . | . . . . Squads Dispatched 1 | . . . 1 Investigation 1 | . . . 1 Extermination . | . . . . Reinforcement . | . . . . Assault . | . . . . Garrison . | . . . . Intercept . | . . . . Construction Impeded . | . . . . Haulers Reinforced . | . . . . Stealth | -11 -10 -10 -9 --------- Run | Scr Mat Min Mat Distress Signals 1 | . 1 . . Communications Jammed . | . . . . Distress Signals . | . . . . Times Spotted 19 | . 11 4 4 Peak Tracking Total 6 | . 6 3 4 Tactical Retreats 1 | . 1 . . Traps | -11 -10 -10 -9 ------- Run | Scr Mat Min Mat Traps Triggered 1 | . . . 1 Indirectly . | . . . . Trap Hack Attempts . | . . . . Triggered . | . . . . Disarmed . | . . . . Reprogrammed . | . . . . Reused . | . . . . Traps Extracted . | . . . . Installed . | . . . . Triggered . | . . . . Machines | -11 -10 -10 -9 ---------- Run | Scr Mat Min Mat Machines Disabled 2 | . 1 1 . Max in Single Turn 1 | . 1 1 . Machines Sabotaged . | . . . . Garrisons Compromised . | . . . . Overloaded Fab Kills . | . . . . Fab Network Shutdowns . | . . . . Hacking | -11 -10 -10 -9 --------- Run | Scr Mat Min Mat Machines Accessed 2 | . 2 . . Terminals 2 | . 2 . . Fabricators . | . . . . Repair Stations . | . . . . Recycling Units . | . . . . Scanalyzers . | . . . . Garrison Access . | . . . . Total Hacks 7 | . 7 . . Successful 5 | . 5 . . Failed 2 | . 2 . . Catastrophic 1 | . 1 . . Database Lockouts . | . . . . Manual 6 | . 6 . . Terminals 7 | . 7 . . Fabricators . | . . . . Repair Stations . | . . . . Recycling Units . | . . . . Scanalyzers . | . . . . Garrison Access . | . . . . Terminal Hacks 1 | . 1 . . Zone Layout 1 | . 1 . . Fabricator Hacks . | . . . . Repair Station Hacks . | . . . . Recycling Unit Hacks . | . . . . Scanalyzer . | . . . . Garrison Access Hacks . | . . . . Unauthorized Hacks 9 | . 9 . . Terminals 4 | . 4 . . Track 2 | . 2 . . Botnet 2 | . 2 . . Fabricators . | . . . . Repair Stations . | . . . . Recycling Units . | . . . . Scanalyzers . | . . . . Garrison Access . | . . . . Data Cores Recovered . | . . . . Used . | . . . . Hacking Detections 2 | . 2 . . Full Trace Events . | . . . . Feedback Events . | . . . . Feedback Blocked . | . . . . Robot Schematics Acquired . | . . . . Robots Built . | . . . . Matter . | . . . . Time . | . . . . Total Robot Build Rating . | . . . . Part Schematics Acquired . | . . . . Parts Built . | . . . . Matter . | . . . . Time . | . . . . Total Part Build Rating . | . . . . Parts Repaired . | . . . . Time . | . . . . Parts Recycled . | . . . . Recycled Matter . | . . . . Retrieved Matter . | . . . . Retrieved Components . | . . . . Parts Scanalyzed . | . . . . Part Schematics Acquired . | . . . . Parts Damaged . | . . . . Bothacking | -11 -10 -10 -9 ------------ Run | Scr Mat Min Mat Used RIF Installer . | . . . . Robots Hacked . | . . . . Non-combat . | . . . . Combat . | . . . . Robot Hacks Applied . | . . . . Relay Couplers Released . | . . . . Robots Rewired . | . . . . Allies Hacked . | . . . . Hacks Repelled . | . . . . Allies | -11 -10 -10 -9 -------- Run | Scr Mat Min Mat Total Allies . | . . . . Largest Group . | . . . . Highest-Rated Group . | . . . . Highest-Rated Ally . | . . . . Total Orders . | . . . . Ally Attacks . | . . . . Total Damage . | . . . . Kills . | . . . . Allies Corrupted . | . . . . Allies Melted . | . . . . Intel | -11 -10 -10 -9 ------- Run | Scr Mat Min Mat Robot Analysis Total . | . . . . Derelict Logs Recovered 1 | . . 1 . Drone Launches . | . . . . Drone Recoveries . | . . . . Exploration | -11 -10 -10 -9 ------------- Run | Scr Mat Min Mat Turns Passed 294 | 19 101 130 44 Spaces Moved 387 | 22 107 217 41 Core 115 | 22 93 . . Treads . | . . . . Legs . | . . . . Wheels . | . . . . Hover . | . . . . Flight 272 | . 14 217 41 Fastest Speed 37 | 50 40 37 40 Average Speed 42 | 50 48 39 40 Slowest Speed 50 | 50 50 40 40 Overloaded Moves . | . . . . Propulsion Burnouts . | . . . . Robots Hopped . | . . . . Cave-ins Triggered . | . . . . Exploration Rate (%) 27 | 3 27 71 7 Regions Visited 3 Branch Regions 1 Pre-discovered Areas . | . . . . Known Exits Taken . | . . . . Unknown Exits Taken 3 | 1 1 1 . Scrap Searched 1 | . . 1 . Spaces Dug . | . . . . Terrain Destroyed 39 | . 17 22 . Melee . | . . . . Projectile . | . . . . AOE 39 | . 17 22 . Actions | -11 -10 -10 -9 --------- Run | Scr Mat Min Mat Total 440 | 27 127 234 52 Wait 3 | . . . 3 Move 384 | 21 106 216 41 Hop . | . . . . Pick Up 1 | . 1 . . Fast Attach 7 | 3 2 2 . Attach . | . . . . Detach . | . . . . Swap 4 | . 1 3 . Drop 3 | 2 . 1 . Fire 34 | 1 13 12 8 Melee . | . . . . Ram . | . . . . Kick . | . . . . Crush . | . . . . Escape Stasis . | . . . . Rewire . | . . . . Trap . | . . . . Miscellaneous 4 | . 4 . . Route ------- -11/Scrapyard -10/Materials -10/Mines -9/Materials (discovered 1 exit: [Sto]) History --------- Turn | Location | Event 1 | -11/Scrapyard | Upgraded with Utility slot (x1) 1 | -11/Scrapyard | Upgraded with Weapon slot (x1) 2 | -11/Scrapyard | Discovered new exit (range 1) 20 | -11/Scrapyard | Entered Materials 54 | -10/Materials | Discovered new exit (range 19) 121 | -10/Materials | Entered Mines 159 | -10/Mines | Reached level 2 163 | -10/Mines | Upgraded with Propulsion slot (x1) 194 | -10/Mines | Core integrity fell below 50% 204 | -10/Mines | Destroyed YI-UF0 226 | -10/Mines | Discovered new exit (range 13) 251 | -10/Mines | Entered Materials 252 | -9/Materials | Core integrity fell below 50% 253 | -9/Materials | Reached level 3 272 | -9/Materials | Core integrity fell below 20% 274 | -9/Materials | Discovered new exit (range 15) 295 | -9/Materials | Destroyed by L-31 Rogue with Katana Last Messages --------------- 00247_ Acquired derelict log, extracted data. Data stored: Recycling entrances (x1). LOCATION=UNKNOWN GOAL=ESCAPE 00253_ Reached level 3. 00256_ K-01 Serf collects debris. 00257_ Acquired 66 matter. 00257_ Acquired 59 matter. 00257_ Acquired 52 matter. 00258_ Acquired 16 matter. 00259_ K-01 Serf collects debris. 00262_ Triggered Alarm Trap. 00262_ An alarm sounds. 00262_ ALERT: Alarm triggered, dispatching investigation squad. 00264_ K-01 Serf collects debris. 00274_ EXIT=FOUND 00275_ K-01 Serf collects debris. 00292_ G-34 Mercenary destroyed. 00294_ K-01 Serf collects debris. 00295_ Assault Rifle severed. Map ----- +----------------------------------------------------+ | | | | | ??????????????????????????????????? | | ??????????????????????????????????? | | ??????????????????????????????????? | | ??????????????????????????????????? | | ????????????????????????????????#?? | | ??????????????????????????????????? | | ??????????????????????????????????? | | ???????????????????????????#??????? | | ??????????????????????#???????????? | | ????????????????????????????????#?? | | ???????????????????????#??????##??? | | ????????????????????##?##???##?#??? | | ???????????????????????#??#?#?#???? | | ???????????????????#?????????#???## | | ???????????????????#??####??#???##? | | ??????????????#?????#??#######???#? | | ????????????#?########?## #??#### | | ???????????????# # #?##### | | ????????????##?# """ # ###?#?# | | ???????????????# """ # #####?? | | ??????????????## ! """ # ##??#?? | | ?????????????#?# + ###?##? | | ?????????????### " " ! # ##?##?# | | ???????????????# "R" #@ #???#?? | | ???????????????# """ # l ###???? | | ??????????????## # ####?? | | ????????????##?########## %%##? | | ???????????#????#??###### #? | | ?????????????##?????# #? | | ?????????????????#### ## | | ????????????T ????### """ %## | | ??????????# ??###?#?# """! %%### | | ???????????????##?#?# """%g#####? | | ??????????#??#??###?# = ###?## | | ???????????? ######## g#?#### | | ??????????# ###### | | ??????????+ #?### | | ??????????# "" k###?? | | ???????????? "T ! """ ##### ##?## | | ???????????? "" """ !?#??? ##??? | | ???????????? """ ?##???+#?##? | | ??????????? ???? ?#?? ] ???# | | ??????????????? ??# ? #?## | | ????????????? ? ?# ? ? !??## | | ???????????? ? ?#???? #??? | | ??????????????#### ? ???? ? #??? | | ???????????????#?# ?? ?#? ?] #??# | | ???????????????#?# ??????#?####?# | +----------------------------------------------------+ Best States ------------- Heat Dissipation 25 Energy Generation 16 Energy Capacity 290 Matter Stores 300 Matter Capacity 300 Sight Range 19 Terrain Scan Range 16 Terrain Scan Density 210 Additional Mass Support 6 Evasion (%) 62 Item Schematics ----------------- None Robot Schematics ------------------ None Fabricated ------------ Nothing Alien Tech Used ----------------- None Achievements -------------- None Challenges ------------ None RPGLIKE | -11 -10 -10 -9 --------- Run | Scr Mat Min Mat Levels Raised 2 | . . 1 1 XP Earned 6160 | 3000 735 925 1500 XP Spent 3070 | 1420 1150 500 . Upgrades 11 | 6 4 1 . Propulsion Slot 1 | . . 1 . Utility Slot 1 | 1 . . . Weapon Slot 1 | 1 . . . Mass Support 2 | 2 . . . Inventory Capacity 1 | . 1 . . Sight Range 3 | . 3 . . Terrain Scan Density 2 | 2 . . . Protomatter Created 144 | . 40 104 . Integrity Restored 83 | . 83 . . Core 67 | . 67 . . Parts 16 | . 16 . . Protomatter Decayed 97 | . . 97 . Game ------ Seed DisposableAssaultRail Manual? 0 Play Time 00:05:05 Cumulative 202.5 hours Start 2019.12.23 @ 22:12:14 End 2019.12.23 @ 22:16:57 Sessions 1 Manual Loads 0 Difficulty Rogue Special Mode Winter2019/RPGLIKE Game No. 429 Rogue 429 Adventurer 0 Explorer 0 Win Type - Total 4 Types 3/0/0/1/0/0/0 Lore% 59 Gallery% 64 Achievement% 55 Wizard Run 0 Options --------- ASCII 0 Keyboard 0 Movement Arrows Keybinds 0 Fullscreen 1 Font 18/SmallcapsGlow Map View 76x50 Tactical HUD 1 Map Filters NONE Filters NONE Steam 1 RUN: 3fa36a3a-bb3f-49ee-a39f-aed9d6b9d0e1